{"text_format":"3","workbook":"xlsx","n_sheets":2,"sheets":["Razpored zaposlenih","Namestitev"],"not_rendered":{"defined_names":21},"read":"whole","date_system":"1900"}

{"sheet":"Razpored zaposlenih","index":0,"n_rows":296,"n_cols":21,"rows_kept":296,"merged":[[6,1,6,9],[66,1,66,9],[126,1,126,9],[186,1,186,9],[246,1,246,9]]}
["Razpored izmen zaposlenih"]
[]
[null,"SKUPNO:",null,{"$f":"SUM(4:4)","v":{"v":56,"d":"56.00"}}]
[null,"URE:",null,{"$f":"SkupnoŠteviloUrZaposlenih","v":8},8,8,8,8,8,8,{"v":0,"d":"0.00"},{"v":0,"d":"0.00"},{"v":0,"d":"0.00"},{"v":0,"d":"0.00"},{"v":0,"d":"0.00"},{"v":0,"d":"0.00"},{"v":0,"d":"0.00"},{"v":0,"d":"0.00"},{"v":0,"d":"0.00"},{"v":0,"d":"0.00"},{"v":0,"d":"0.00"}]
[null,"ZAPOSLENI:",null,"Cajhen, J","Makovec, T","Potokar, M","Makovec, T","Gostinčar, M","Koklič, A","Palčič, R"]
[]
[null,"2012-07-16T09:00:00"]
[null,{"$f":"B7","v":41106.375},{"$nulls":5},"Dopust"]
[null,{"$f":"PrikazObdobij","v":":15"},null,"Recepcija",{"$nulls":3},"Dopust"]
[null,":30",null,"Recepcija",{"$nulls":3},"Dopust"]
[null,":45",null,"Recepcija","Nadzornik",null,"Storitve za stranke","Dopust"]
[null,"10:00 AM",null,"Recepcija","Nadzornik",null,"Storitve za stranke","Dopust"]
[null,":15",null,"Recepcija","Nadzornik",null,"Storitve za stranke","Dopust"]
[null,":30",null,"Recepcija","Nadzornik",null,"Storitve za stranke","Dopust","Računovodstvo"]
[null,":45",null,"Recepcija","Nadzornik",null,"Storitve za stranke","Dopust","Računovodstvo","Hišnik"]
[null,"11:00 AM",null,"Recepcija","Nadzornik",null,"Storitve za stranke","Dopust","Računovodstvo","Hišnik"]
[null,":15",null,"Recepcija","Nadzornik","Vodnik","Storitve za stranke","Dopust","Računovodstvo","Hišnik"]
[null,":30",null,"Recepcija","Odmor","Vodnik","Storitve za stranke","Dopust","Računovodstvo","Hišnik"]
[null,":45",null,"Kosilo","Nadzornik","Vodnik","Storitve za stranke","Dopust","Računovodstvo","Hišnik"]
[null,"12:00 PM",null,"Kosilo","Nadzornik","Vodnik","Storitve za stranke","Dopust","Računovodstvo","Hišnik"]
[null,":15",null,"Recepcija","Nadzornik","Vodnik","Storitve za stranke","Dopust","Odmor","Hišnik"]
[null,":30",null,"Recepcija","Nadzornik","Odmor","Storitve za stranke","Dopust","Telefoni","Odmor"]
[null,":45",null,"Recepcija","Nadzornik","Vodnik","Storitve za stranke","Dopust","Telefoni","Hišnik"]
[null,"1:00 PM",null,"Recepcija","Nadzornik","Vodnik","Storitve za stranke","Dopust","Telefoni","Hišnik"]
[null,":15",null,"Recepcija","Nadzornik","Vodnik","Kosilo","Dopust","Telefoni","Hišnik"]
[null,":30",null,null,"Nadzornik","Vodnik","Kosilo","Dopust","Telefoni","Hišnik"]
[null,":45",null,null,"Nadzornik","Vodnik","Kosilo","Dopust","Kosilo","Hišnik"]
[null,"2:00 PM",null,"Blagajnik","Kosilo","Vodnik","Kosilo","Dopust","Kosilo","Hišnik"]
[null,":15",null,"Blagajnik","Kosilo","Vodnik","Storitve za stranke","Dopust","Telefoni","Hišnik"]
[null,":30",null,"Blagajnik","Kosilo","Kosilo","Storitve za stranke","Dopust","Telefoni","Kosilo"]
[null,":45",null,"Blagajnik","Kosilo","Kosilo","Storitve za stranke","Dopust","Telefoni","Kosilo"]
[null,"3:00 PM",null,"Blagajnik","Varnost","Kosilo","Storitve za stranke","Dopust","Telefoni","Kosilo"]
[null,":15",null,"Blagajnik","Varnost","Kosilo","Storitve za stranke","Dopust","Telefoni","Kosilo"]
[null,":30",null,"Blagajnik","Varnost","Vodnik","Storitve za stranke","Dopust","Telefoni","Zapri"]
[null,":45",null,"Blagajnik","Varnost","Vodnik","Storitve za stranke","Dopust","Telefoni","Zapri"]
[null,"4:00 PM",null,"Blagajnik","Varnost","Vodnik","Storitve za stranke","Dopust","Odmor","Zapri"]
[null,":15",null,"Odmor","Varnost","Vodnik","Odmor","Dopust","Telefoni","Zapri"]
[null,":30",null,"Blagajnik","Varnost","Vodnik","Storitve za stranke","Dopust","Telefoni","Zapri"]
[null,":45",null,"Blagajnik","Varnost","Vodnik","Storitve za stranke","Dopust","Telefoni","Zapri"]
[null,"5:00 PM",null,"Blagajnik","Varnost","Vodnik","Storitve za stranke",null,"Telefoni","Zapri"]
[null,":15",null,"Blagajnik","Varnost","Vodnik","Storitve za stranke",null,"Telefoni","Zapri"]
[null,":30",null,"Blagajnik","Varnost","Vodnik","Storitve za stranke",null,"Telefoni","Zapri"]
[null,":45",null,"Blagajnik","Varnost","Vodnik","Storitve za stranke",null,"Telefoni","Zapri"]
[null,"6:00 PM",null,"Blagajnik","Varnost","Vodnik","Storitve za stranke",null,"Telefoni","Zapri"]
[null,":15",null,"Blagajnik","Varnost","Vodnik","Storitve za stranke",null,"Telefoni","Zapri"]
[null,":30",null,null,"Varnost","Vodnik","Storitve za stranke",null,"Telefoni","Zapri"]
[null,":45",null,null,"Varnost","Odmor","Storitve za stranke",null,"Telefoni","Odmor"]
[null,"7:00 PM",{"$nulls":3},"Vodnik",null,null,"Telefoni","Zapri"]
[null,":15",{"$nulls":3},"Vodnik",null,null,"Telefoni","Zapri"]
[null,":30",{"$nulls":3},"Vodnik",{"$nulls":3},"Zapri"]
[null,":45",{"$nulls":3},"Vodnik",{"$nulls":3},"Zapri"]
[null,"8:00 PM",{"$nulls":3},"Vodnik",{"$nulls":3},"Zapri"]
[null,":15",{"$nulls":3},"Vodnik"]
[null,":30",{"$nulls":3},"Vodnik"]
[null,":45"]
[null,"9:00 PM"]
[]
[]
[]
[]
["Razpored zaposlenih"]
[]
[null,"SKUPNO:",null,{"$f":"SUM(64:64)","v":{"v":56,"d":"56.00"}}]
[null,"URE:",null,{"$f":"SkupnoŠteviloUrZaposlenih","v":8},8,8,8,8,8,8,{"v":0,"d":"0.00"},{"v":0,"d":"0.00"},{"v":0,"d":"0.00"},{"v":0,"d":"0.00"},{"v":0,"d":"0.00"},{"v":0,"d":"0.00"},{"v":0,"d":"0.00"},{"v":0,"d":"0.00"},{"v":0,"d":"0.00"},{"v":0,"d":"0.00"},{"v":0,"d":"0.00"}]
[null,"ZAPOSLENI:",null,"Cajhen, J","Makovec, T","Potokar, M","Mirtič, D","Gostinčar, M","Koklič, A","Palčič, R"]
[]
[null,{"$f":"B7+1","v":"2012-07-17T09:00:00"}]
[null,{"$f":"B67","v":41107.375},{"$nulls":5},"Dopust"]
[null,{"$f":"PrikazObdobij","v":":15"},null,"Recepcija",{"$nulls":3},"Dopust"]
[null,":30",null,"Recepcija",{"$nulls":3},"Dopust"]
[null,":45",null,"Recepcija","Nadzornik",null,"Storitve za stranke","Dopust"]
[null,"1:00 AM",null,"Recepcija","Nadzornik",null,"Storitve za stranke","Dopust"]
[null,":15",null,"Recepcija","Nadzornik",null,"Storitve za stranke","Dopust"]
[null,":30",null,"Recepcija","Nadzornik",null,"Storitve za stranke","Dopust","Računovodstvo"]
[null,":45",null,"Recepcija","Nadzornik",null,"Storitve za stranke","Dopust","Računovodstvo","Hišnik"]
[null,"2:00 AM",null,"Recepcija","Nadzornik",null,"Storitve za stranke","Dopust","Računovodstvo","Hišnik"]
[null,":15",null,"Recepcija","Nadzornik","Vodnik","Storitve za stranke","Dopust","Računovodstvo","Hišnik"]
[null,":30",null,"Recepcija","Odmor","Vodnik","Storitve za stranke","Dopust","Računovodstvo","Hišnik"]
[null,":45",null,"Kosilo","Nadzornik","Vodnik","Storitve za stranke","Dopust","Računovodstvo","Hišnik"]
[null,"3:00 AM",null,"Kosilo","Nadzornik","Vodnik","Storitve za stranke","Dopust","Računovodstvo","Hišnik"]
[null,":15",null,"Recepcija","Nadzornik","Vodnik","Storitve za stranke","Dopust","Odmor","Hišnik"]
[null,":30",null,"Recepcija","Nadzornik","Odmor","Storitve za stranke","Dopust","Telefoni","Odmor"]
[null,":45",null,"Recepcija","Nadzornik","Vodnik","Storitve za stranke","Dopust","Telefoni","Hišnik"]
[null,"4:00 AM",null,"Recepcija","Nadzornik","Vodnik","Storitve za stranke","Dopust","Telefoni","Hišnik"]
[null,":15",null,"Recepcija","Nadzornik","Vodnik","Kosilo","Dopust","Telefoni","Hišnik"]
[null,":30",null,null,"Nadzornik","Vodnik","Kosilo","Dopust","Telefoni","Hišnik"]
[null,":45",null,null,"Nadzornik","Vodnik","Kosilo","Dopust","Kosilo","Hišnik"]
[null,"5:00 AM",null,"Blagajnik","Kosilo","Vodnik","Kosilo","Dopust","Kosilo","Hišnik"]
[null,":15",null,"Blagajnik","Kosilo","Vodnik","Storitve za stranke","Dopust","Telefoni","Hišnik"]
[null,":30",null,"Blagajnik","Kosilo","Kosilo","Storitve za stranke","Dopust","Telefoni","Kosilo"]
[null,":45",null,"Blagajnik","Kosilo","Kosilo","Storitve za stranke","Dopust","Telefoni","Kosilo"]
[null,"6:00 AM",null,"Blagajnik","Varnost","Kosilo","Storitve za stranke","Dopust","Telefoni","Kosilo"]
[null,":15",null,"Blagajnik","Varnost","Kosilo","Storitve za stranke","Dopust","Telefoni","Kosilo"]
[null,":30",null,"Blagajnik","Varnost","Vodnik","Storitve za stranke","Dopust","Telefoni","Zapri"]
[null,":45",null,"Blagajnik","Varnost","Vodnik","Storitve za stranke","Dopust","Telefoni","Zapri"]
[null,"7:00 AM",null,"Blagajnik","Varnost","Vodnik","Storitve za stranke","Dopust","Odmor","Zapri"]
[null,":15",null,"Odmor","Varnost","Vodnik","Odmor","Dopust","Telefoni","Zapri"]
[null,":30",null,"Blagajnik","Varnost","Vodnik","Storitve za stranke","Dopust","Telefoni","Zapri"]
[null,":45",null,"Blagajnik","Varnost","Vodnik","Storitve za stranke","Dopust","Telefoni","Zapri"]
[null,"8:00 AM",null,"Blagajnik","Varnost","Vodnik","Storitve za stranke",null,"Telefoni","Zapri"]
[null,":15",null,"Blagajnik","Varnost","Vodnik","Storitve za stranke",null,"Telefoni","Zapri"]
[null,":30",null,"Blagajnik","Varnost","Vodnik","Storitve za stranke",null,"Telefoni","Zapri"]
[null,":45",null,"Blagajnik","Varnost","Vodnik","Storitve za stranke",null,"Telefoni","Zapri"]
[null,"9:00 AM",null,"Blagajnik","Varnost","Vodnik","Storitve za stranke",null,"Telefoni","Zapri"]
[null,":15",null,"Blagajnik","Varnost","Vodnik","Storitve za stranke",null,"Telefoni","Zapri"]
[null,":30",null,null,"Varnost","Vodnik","Storitve za stranke",null,"Telefoni","Zapri"]
[null,":45",null,null,"Varnost","Odmor","Storitve za stranke",null,"Telefoni","Odmor"]
[null,"10:00 AM",{"$nulls":3},"Vodnik",null,null,"Telefoni","Zapri"]
[null,":15",{"$nulls":3},"Vodnik",null,null,"Telefoni","Zapri"]
[null,":30",{"$nulls":3},"Vodnik",{"$nulls":3},"Zapri"]
[null,":45",{"$nulls":3},"Vodnik",{"$nulls":3},"Zapri"]
[null,"11:00 AM",{"$nulls":3},"Vodnik",{"$nulls":3},"Zapri"]
[null,":15",{"$nulls":3},"Vodnik"]
[null,":30",{"$nulls":3},"Vodnik"]
[null,":45"]
[null,"12:00 PM"]
[]
[]
[]
[]
["Razpored zaposlenih"]
[]
[null,"SKUPNO:",null,{"$f":"SUM(124:124)","v":{"v":56,"d":"56.00"}}]
[null,"URE:",null,{"$f":"SkupnoŠteviloUrZaposlenih","v":8},8,8,8,8,8,8,{"v":0,"d":"0.00"},{"v":0,"d":"0.00"},{"v":0,"d":"0.00"},{"v":0,"d":"0.00"},{"v":0,"d":"0.00"},{"v":0,"d":"0.00"},{"v":0,"d":"0.00"},{"v":0,"d":"0.00"},{"v":0,"d":"0.00"},{"v":0,"d":"0.00"},{"v":0,"d":"0.00"}]
[null,"ZAPOSLENI:",null,"Cajhen, J","Makovec, T","Potokar, M","Mirtič, D","Gostinčar, M","Koklič, A","Palčič, R"]
[]
[null,{"$f":"B67+1","v":"2012-07-18T09:00:00"}]
[null,{"$f":"B127","v":41108.375},{"$nulls":5},"Dopust"]
[null,{"$f":"PrikazObdobij","v":":15"},null,"Recepcija",{"$nulls":3},"Dopust"]
[null,":30",null,"Recepcija",{"$nulls":3},"Dopust"]
[null,":45",null,"Recepcija","Nadzornik",null,"Storitve za stranke","Dopust"]
[null,"4:00 PM",null,"Recepcija","Nadzornik",null,"Storitve za stranke","Dopust"]
[null,":15",null,"Recepcija","Nadzornik",null,"Storitve za stranke","Dopust"]
[null,":30",null,"Recepcija","Nadzornik",null,"Storitve za stranke","Dopust","Računovodstvo"]
[null,":45",null,"Recepcija","Nadzornik",null,"Storitve za stranke","Dopust","Računovodstvo","Hišnik"]
[null,"5:00 PM",null,"Recepcija","Nadzornik",null,"Storitve za stranke","Dopust","Računovodstvo","Hišnik"]
[null,":15",null,"Recepcija","Nadzornik","Vodnik","Storitve za stranke","Dopust","Računovodstvo","Hišnik"]
[null,":30",null,"Recepcija","Odmor","Vodnik","Storitve za stranke","Dopust","Računovodstvo","Hišnik"]
[null,":45",null,"Kosilo","Nadzornik","Vodnik","Storitve za stranke","Dopust","Računovodstvo","Hišnik"]
[null,"6:00 PM",null,"Kosilo","Nadzornik","Vodnik","Storitve za stranke","Dopust","Računovodstvo","Hišnik"]
[null,":15",null,"Recepcija","Nadzornik","Vodnik","Storitve za stranke","Dopust","Odmor","Hišnik"]
[null,":30",null,"Recepcija","Nadzornik","Odmor","Storitve za stranke","Dopust","Telefoni","Odmor"]
[null,":45",null,"Recepcija","Nadzornik","Vodnik","Storitve za stranke","Dopust","Telefoni","Hišnik"]
[null,"7:00 PM",null,"Recepcija","Nadzornik","Vodnik","Storitve za stranke","Dopust","Telefoni","Hišnik"]
[null,":15",null,"Recepcija","Nadzornik","Vodnik","Kosilo","Dopust","Telefoni","Hišnik"]
[null,":30",null,null,"Nadzornik","Vodnik","Kosilo","Dopust","Telefoni","Hišnik"]
[null,":45",null,null,"Nadzornik","Vodnik","Kosilo","Dopust","Kosilo","Hišnik"]
[null,"8:00 PM",null,"Blagajnik","Kosilo","Vodnik","Kosilo","Dopust","Kosilo","Hišnik"]
[null,":15",null,"Blagajnik","Kosilo","Vodnik","Storitve za stranke","Dopust","Telefoni","Hišnik"]
[null,":30",null,"Blagajnik","Kosilo","Kosilo","Storitve za stranke","Dopust","Telefoni","Kosilo"]
[null,":45",null,"Blagajnik","Kosilo","Kosilo","Storitve za stranke","Dopust","Telefoni","Kosilo"]
[null,"9:00 PM",null,"Blagajnik","Varnost","Kosilo","Storitve za stranke","Dopust","Telefoni","Kosilo"]
[null,":15",null,"Blagajnik","Varnost","Kosilo","Storitve za stranke","Dopust","Telefoni","Kosilo"]
[null,":30",null,"Blagajnik","Varnost","Vodnik","Storitve za stranke","Dopust","Telefoni","Zapri"]
[null,":45",null,"Blagajnik","Varnost","Vodnik","Storitve za stranke","Dopust","Telefoni","Zapri"]
[null,"10:00 PM",null,"Blagajnik","Varnost","Vodnik","Storitve za stranke","Dopust","Odmor","Zapri"]
[null,":15",null,"Odmor","Varnost","Vodnik","Odmor","Dopust","Telefoni","Zapri"]
[null,":30",null,"Blagajnik","Varnost","Vodnik","Storitve za stranke","Dopust","Telefoni","Zapri"]
[null,":45",null,"Blagajnik","Varnost","Vodnik","Storitve za stranke","Dopust","Telefoni","Zapri"]
[null,"11:00 PM",null,"Blagajnik","Varnost","Vodnik","Storitve za stranke",null,"Telefoni","Zapri"]
[null,":15",null,"Blagajnik","Varnost","Vodnik","Storitve za stranke",null,"Telefoni","Zapri"]
[null,":30",null,"Blagajnik","Varnost","Vodnik","Storitve za stranke",null,"Telefoni","Zapri"]
[null,":45",null,"Blagajnik","Varnost","Vodnik","Storitve za stranke",null,"Telefoni","Zapri"]
[null,"12:00 AM",null,"Blagajnik","Varnost","Vodnik","Storitve za stranke",null,"Telefoni","Zapri"]
[null,":15",null,"Blagajnik","Varnost","Vodnik","Storitve za stranke",null,"Telefoni","Zapri"]
[null,":30",null,null,"Varnost","Vodnik","Storitve za stranke",null,"Telefoni","Zapri"]
[null,":45",null,null,"Varnost","Odmor","Storitve za stranke",null,"Telefoni","Odmor"]
[null,"1:00 AM",{"$nulls":3},"Vodnik",null,null,"Telefoni","Zapri"]
[null,":15",{"$nulls":3},"Vodnik",null,null,"Telefoni","Zapri"]
[null,":30",{"$nulls":3},"Vodnik",{"$nulls":3},"Zapri"]
[null,":45",{"$nulls":3},"Vodnik",{"$nulls":3},"Zapri"]
[null,"2:00 AM",{"$nulls":3},"Vodnik",{"$nulls":3},"Zapri"]
[null,":15",{"$nulls":3},"Vodnik"]
[null,":30",{"$nulls":3},"Vodnik"]
[null,":45"]
[null,"3:00 AM"]
[]
[]
[]
[]
["Razpored zaposlenih"]
[]
[null,"SKUPNO:",null,{"$f":"SUM(184:184)","v":{"v":56,"d":"56.00"}}]
[null,"URE:",null,{"$f":"SkupnoŠteviloUrZaposlenih","v":8},8,8,8,8,8,8,{"v":0,"d":"0.00"},{"v":0,"d":"0.00"},{"v":0,"d":"0.00"},{"v":0,"d":"0.00"},{"v":0,"d":"0.00"},{"v":0,"d":"0.00"},{"v":0,"d":"0.00"},{"v":0,"d":"0.00"},{"v":0,"d":"0.00"},{"v":0,"d":"0.00"},{"v":0,"d":"0.00"}]
[null,"ZAPOSLENI:",null,"Cajhen, J","Makovec, T","Potokar, M","Mirtič, D","Gostinčar, M","Koklič, A","Palčič, R"]
[]
[null,{"$f":"B127+1","v":"2012-07-19T09:00:00"}]
[null,{"$f":"B187","v":41109.375},{"$nulls":5},"Dopust"]
[null,{"$f":"PrikazObdobij","v":":15"},null,"Recepcija",{"$nulls":3},"Dopust"]
[null,":30",null,"Recepcija",{"$nulls":3},"Dopust"]
[null,":45",null,"Recepcija","Nadzornik",null,"Storitve za stranke","Dopust"]
[null,"7:00 AM",null,"Recepcija","Nadzornik",null,"Storitve za stranke","Dopust"]
[null,":15",null,"Recepcija","Nadzornik",null,"Storitve za stranke","Dopust"]
[null,":30",null,"Recepcija","Nadzornik",null,"Storitve za stranke","Dopust","Računovodstvo"]
[null,":45",null,"Recepcija","Nadzornik",null,"Storitve za stranke","Dopust","Računovodstvo","Hišnik"]
[null,"8:00 AM",null,"Recepcija","Nadzornik",null,"Storitve za stranke","Dopust","Računovodstvo","Hišnik"]
[null,":15",null,"Recepcija","Nadzornik","Vodnik","Storitve za stranke","Dopust","Računovodstvo","Hišnik"]
[null,":30",null,"Recepcija","Odmor","Vodnik","Storitve za stranke","Dopust","Računovodstvo","Hišnik"]
[null,":45",null,"Kosilo","Nadzornik","Vodnik","Storitve za stranke","Dopust","Računovodstvo","Hišnik"]
[null,"9:00 AM",null,"Kosilo","Nadzornik","Vodnik","Storitve za stranke","Dopust","Računovodstvo","Hišnik"]
[null,":15",null,"Recepcija","Nadzornik","Vodnik","Storitve za stranke","Dopust","Odmor","Hišnik"]
[null,":30",null,"Recepcija","Nadzornik","Odmor","Storitve za stranke","Dopust","Telefoni","Odmor"]
[null,":45",null,"Recepcija","Nadzornik","Vodnik","Storitve za stranke","Dopust","Telefoni","Hišnik"]
[null,"10:00 AM",null,"Recepcija","Nadzornik","Vodnik","Storitve za stranke","Dopust","Telefoni","Hišnik"]
[null,":15",null,"Recepcija","Nadzornik","Vodnik","Kosilo","Dopust","Telefoni","Hišnik"]
[null,":30",null,null,"Nadzornik","Vodnik","Kosilo","Dopust","Telefoni","Hišnik"]
[null,":45",null,null,"Nadzornik","Vodnik","Kosilo","Dopust","Kosilo","Hišnik"]
[null,"11:00 AM",null,"Blagajnik","Kosilo","Vodnik","Kosilo","Dopust","Kosilo","Hišnik"]
[null,":15",null,"Blagajnik","Kosilo","Vodnik","Storitve za stranke","Dopust","Telefoni","Hišnik"]
[null,":30",null,"Blagajnik","Kosilo","Kosilo","Storitve za stranke","Dopust","Telefoni","Kosilo"]
[null,":45",null,"Blagajnik","Kosilo","Kosilo","Storitve za stranke","Dopust","Telefoni","Kosilo"]
[null,"12:00 PM",null,"Blagajnik","Varnost","Kosilo","Storitve za stranke","Dopust","Telefoni","Kosilo"]
[null,":15",null,"Blagajnik","Varnost","Kosilo","Storitve za stranke","Dopust","Telefoni","Kosilo"]
[null,":30",null,"Blagajnik","Varnost","Vodnik","Storitve za stranke","Dopust","Telefoni","Zapri"]
[null,":45",null,"Blagajnik","Varnost","Vodnik","Storitve za stranke","Dopust","Telefoni","Zapri"]
[null,"1:00 PM",null,"Blagajnik","Varnost","Vodnik","Storitve za stranke","Dopust","Odmor","Zapri"]
[null,":15",null,"Odmor","Varnost","Vodnik","Odmor","Dopust","Telefoni","Zapri"]
[null,":30",null,"Blagajnik","Varnost","Vodnik","Storitve za stranke","Dopust","Telefoni","Zapri"]
[null,":45",null,"Blagajnik","Varnost","Vodnik","Storitve za stranke","Dopust","Telefoni","Zapri"]
[null,"2:00 PM",null,"Blagajnik","Varnost","Vodnik","Storitve za stranke",null,"Telefoni","Zapri"]
[null,":15",null,"Blagajnik","Varnost","Vodnik","Storitve za stranke",null,"Telefoni","Zapri"]
[null,":30",null,"Blagajnik","Varnost","Vodnik","Storitve za stranke",null,"Telefoni","Zapri"]
[null,":45",null,"Blagajnik","Varnost","Vodnik","Storitve za stranke",null,"Telefoni","Zapri"]
[null,"3:00 PM",null,"Blagajnik","Varnost","Vodnik","Storitve za stranke",null,"Telefoni","Zapri"]
[null,":15",null,"Blagajnik","Varnost","Vodnik","Storitve za stranke",null,"Telefoni","Zapri"]
[null,":30",null,null,"Varnost","Vodnik","Storitve za stranke",null,"Telefoni","Zapri"]
[null,":45",null,null,"Varnost","Odmor","Storitve za stranke",null,"Telefoni","Odmor"]
[null,"4:00 PM",{"$nulls":3},"Vodnik",null,null,"Telefoni","Zapri"]
[null,":15",{"$nulls":3},"Vodnik",null,null,"Telefoni","Zapri"]
[null,":30",{"$nulls":3},"Vodnik",{"$nulls":3},"Zapri"]
[null,":45",{"$nulls":3},"Vodnik",{"$nulls":3},"Zapri"]
[null,"5:00 PM",{"$nulls":3},"Vodnik",{"$nulls":3},"Zapri"]
[null,":15",{"$nulls":3},"Vodnik"]
[null,":30",{"$nulls":3},"Vodnik"]
[null,":45"]
[null,"6:00 PM"]
[]
[]
[]
[]
["Razpored zaposlenih"]
[]
[null,"SKUPNO:",null,{"$f":"SUM(244:244)","v":{"v":56,"d":"56.00"}}]
[null,"URE:",null,{"$f":"SkupnoŠteviloUrZaposlenih","v":8},8,8,8,8,8,8,{"v":0,"d":"0.00"},{"v":0,"d":"0.00"},{"v":0,"d":"0.00"},{"v":0,"d":"0.00"},{"v":0,"d":"0.00"},{"v":0,"d":"0.00"},{"v":0,"d":"0.00"},{"v":0,"d":"0.00"},{"v":0,"d":"0.00"},{"v":0,"d":"0.00"},{"v":0,"d":"0.00"}]
[null,"ZAPOSLENI:",null,"Cajhen, J","Makovec, T","Potokar, M","Mirtič, D","Gostinčar, M","Koklič, A","Palčič, R"]
[]
[null,{"$f":"B187+1","v":"2012-07-20T09:00:00"}]
[null,{"$f":"B247","v":41110.375},{"$nulls":5},"Dopust"]
[null,{"$f":"PrikazObdobij","v":":15"},null,"Recepcija",{"$nulls":3},"Dopust"]
[null,":30",null,"Recepcija",{"$nulls":3},"Dopust"]
[null,":45",null,"Recepcija","Nadzornik",null,"Storitve za stranke","Dopust"]
[null,"10:00 PM",null,"Recepcija","Nadzornik",null,"Storitve za stranke","Dopust"]
[null,":15",null,"Recepcija","Nadzornik",null,"Storitve za stranke","Dopust"]
[null,":30",null,"Recepcija","Nadzornik",null,"Storitve za stranke","Dopust","Računovodstvo"]
[null,":45",null,"Recepcija","Nadzornik",null,"Storitve za stranke","Dopust","Računovodstvo","Hišnik"]
[null,"11:00 PM",null,"Recepcija","Nadzornik",null,"Storitve za stranke","Dopust","Računovodstvo","Hišnik"]
[null,":15",null,"Recepcija","Nadzornik","Vodnik","Storitve za stranke","Dopust","Računovodstvo","Hišnik"]
[null,":30",null,"Recepcija","Odmor","Vodnik","Storitve za stranke","Dopust","Računovodstvo","Hišnik"]
[null,":45",null,"Kosilo","Nadzornik","Vodnik","Storitve za stranke","Dopust","Računovodstvo","Hišnik"]
[null,"12:00 AM",null,"Kosilo","Nadzornik","Vodnik","Storitve za stranke","Dopust","Računovodstvo","Hišnik"]
[null,":15",null,"Recepcija","Nadzornik","Vodnik","Storitve za stranke","Dopust","Odmor","Hišnik"]
[null,":30",null,"Recepcija","Nadzornik","Odmor","Storitve za stranke","Dopust","Telefoni","Odmor"]
[null,":45",null,"Recepcija","Nadzornik","Vodnik","Storitve za stranke","Dopust","Telefoni","Hišnik"]
[null,"1:00 AM",null,"Recepcija","Nadzornik","Vodnik","Storitve za stranke","Dopust","Telefoni","Hišnik"]
[null,":15",null,"Recepcija","Nadzornik","Vodnik","Kosilo","Dopust","Telefoni","Hišnik"]
[null,":30",null,null,"Nadzornik","Vodnik","Kosilo","Dopust","Telefoni","Hišnik"]
[null,":45",null,null,"Nadzornik","Vodnik","Kosilo","Dopust","Kosilo","Hišnik"]
[null,"2:00 AM",null,"Blagajnik","Kosilo","Vodnik","Kosilo","Dopust","Kosilo","Hišnik"]
[null,":15",null,"Blagajnik","Kosilo","Vodnik","Storitve za stranke","Dopust","Telefoni","Hišnik"]
[null,":30",null,"Blagajnik","Kosilo","Kosilo","Storitve za stranke","Dopust","Telefoni","Kosilo"]
[null,":45",null,"Blagajnik","Kosilo","Kosilo","Storitve za stranke","Dopust","Telefoni","Kosilo"]
[null,"3:00 AM",null,"Blagajnik","Varnost","Kosilo","Storitve za stranke","Dopust","Telefoni","Kosilo"]
[null,":15",null,"Blagajnik","Varnost","Kosilo","Storitve za stranke","Dopust","Telefoni","Kosilo"]
[null,":30",null,"Blagajnik","Varnost","Vodnik","Storitve za stranke","Dopust","Telefoni","Zapri"]
[null,":45",null,"Blagajnik","Varnost","Vodnik","Storitve za stranke","Dopust","Telefoni","Zapri"]
[null,"4:00 AM",null,"Blagajnik","Varnost","Vodnik","Storitve za stranke","Dopust","Odmor","Zapri"]
[null,":15",null,"Odmor","Varnost","Vodnik","Odmor","Dopust","Telefoni","Zapri"]
[null,":30",null,"Blagajnik","Varnost","Vodnik","Storitve za stranke","Dopust","Telefoni","Zapri"]
[null,":45",null,"Blagajnik","Varnost","Vodnik","Storitve za stranke","Dopust","Telefoni","Zapri"]
[null,"5:00 AM",null,"Blagajnik","Varnost","Vodnik","Storitve za stranke",null,"Telefoni","Zapri"]
[null,":15",null,"Blagajnik","Varnost","Vodnik","Storitve za stranke",null,"Telefoni","Zapri"]
[null,":30",null,"Blagajnik","Varnost","Vodnik","Storitve za stranke",null,"Telefoni","Zapri"]
[null,":45",null,"Blagajnik","Varnost","Vodnik","Storitve za stranke",null,"Telefoni","Zapri"]
[null,"6:00 AM",null,"Blagajnik","Varnost","Vodnik","Storitve za stranke",null,"Telefoni","Zapri"]
[null,":15",null,"Blagajnik","Varnost","Vodnik","Storitve za stranke",null,"Telefoni","Zapri"]
[null,":30",null,null,"Varnost","Vodnik","Storitve za stranke",null,"Telefoni","Zapri"]
[null,":45",null,null,"Varnost","Odmor","Storitve za stranke",null,"Telefoni","Odmor"]
[null,"7:00 AM",{"$nulls":3},"Vodnik",null,null,"Telefoni","Zapri"]
[null,":15",{"$nulls":3},"Vodnik",null,null,"Telefoni","Zapri"]
[null,":30",{"$nulls":3},"Vodnik",{"$nulls":3},"Zapri"]
[null,":45",{"$nulls":3},"Vodnik",{"$nulls":3},"Zapri"]
[null,"8:00 AM",{"$nulls":3},"Vodnik",{"$nulls":3},"Zapri"]
[null,":15",{"$nulls":3},"Vodnik"]
[null,":30",{"$nulls":3},"Vodnik"]
[null,":45"]
[null,"9:00 AM"]

{"sheet":"Namestitev","index":1,"n_rows":26,"n_cols":7,"rows_kept":26}
[null,"Namestitev"]
[]
[]
[null,"PRIRASTEK NA URO VNOSA",4]
[]
[]
[]
[]
[]
[null,"Zaposleni",null,"Položaj/Prosti čas","Barva","Plačano","Ves dan"]
[null,"Cajhen, J",null,"Kosilo",1,false,false]
[null,"Gostinčar, M",null,"Odmor",1,false,false]
[null,"Koklič, A",null,"Izključeno",1,false,true]
[null,"Kopač, B",null,"Zbolel",1,false,true]
[null,"Makovec, T",null,"Osebni dan",1,true,true]
[null,"Mirtič, D",null,"Dopust",1,true,true]
[null,"Palčič, R",null,"Recepcija",2,true,false]
[null,"Potokar, M",null,"Blagajnik",3,true,false]
[{"$nulls":3},"Nadzornik",4,true,false]
[{"$nulls":3},"Vodnik",5,true,false]
[{"$nulls":3},"Storitve za stranke",6,true,false]
[{"$nulls":3},"Telefoni",7,true,false]
[{"$nulls":3},"Varnost",8,true,false]
[{"$nulls":3},"Hišnik",9,true,false]
[{"$nulls":3},"Računovodstvo",10,true,false]
[{"$nulls":3},"Zapri",11,true,false]